bitfinex/quotes_BTCUSD_20250922
["timestamp","ask_amount","ask_price","bid_price","bid_amount"]
[1758538901936,0.16128271,113030.0,113020.0,0.59486113]
[1758538902134,0.28344,113030.0,113020.0,0.34859572]
[1758538902357,0.28344,113030.0,113020.0,0.59486113]
[1758538902545,0.46038417,113030.0,113020.0,0.59486113]
[1758538902801,0.28344,113030.0,113020.0,0.34859572]
[1758538903002,0.46038417,113030.0,113020.0,0.59490113]
[1758538904217,0.46038417,113030.0,113020.0,0.34863572]
[1758538904354,0.28344,113030.0,113020.0,0.59490113]
[1758538904564,0.46038417,113030.0,113020.0,0.59490113]
[1758538905960,0.28344,113030.0,113020.0,0.59490113]
[1758538906376,0.17692852,113040.0,113030.0,0.17694417]
[1758538906621,0.55596852,113040.0,113030.0,0.028]
[1758538907962,0.55796852,113040.0,113030.0,0.028]
[1758538908121,0.55996852,113040.0,113030.0,0.028]
[1758538908513,0.55996852,113040.0,113030.0,0.02498]
[1758538908762,0.55996852,113040.0,113030.0,0.08164868]
[1758538908939,0.80623393,113040.0,113030.0,0.08164868]
[1758538909274,0.80623393,113040.0,113030.0,0.05873868]
[1758538909704,0.80623393,113040.0,113030.0,0.05666868]
[1758538910182,0.55996852,113040.0,113030.0,0.05666868]
[1758538910360,0.80623393,113040.0,113030.0,0.05666868]
[1758538912588,0.42719393,113040.0,113030.0,0.05666868]
[1758538912790,0.80615393,113040.0,113030.0,0.05666868]
[1758538913600,0.17694417,113030.0,113020.0,0.11546158]
[1758538914301,0.17694417,113030.0,113020.0,0.14346158]
[1758538914728,0.42320958,113030.0,113020.0,0.14346158]
[1758538914905,0.17694417,113030.0,113020.0,0.14446158]
[1758538915346,0.17694417,113030.0,113020.0,0.32142141]
[1758538915772,0.17694417,113030.0,113020.0,0.14446158]
[1758538915979,0.17694417,113030.0,113020.0,0.32142141]
[1758538916204,0.17694417,113030.0,113020.0,0.14446158]
[1758538916433,0.17694417,113030.0,113020.0,0.32142141]
[1758538917505,0.17694417,113030.0,113020.0,0.56768682]
[1758538918122,0.17694417,113030.0,113020.0,0.39072699]
[1758538918480,0.17694417,113030.0,113020.0,0.56768682]
[1758538918664,0.17694417,113030.0,113020.0,0.39072699]
[1758538918862,0.17694417,113030.0,113020.0,0.14446158]
[1758538919064,0.17694417,113030.0,113020.0,0.11646158]
[1758538919296,0.17694417,113030.0,113020.0,0.15522667]
[1758538919517,0.42320958,113030.0,113020.0,0.15734667]
[1758538919756,0.42320958,113030.0,113020.0,0.18492667]
[1758538920381,0.17694417,113030.0,113020.0,0.18189667]
[1758538920588,0.17694417,113030.0,113020.0,0.18492667]
[1758538920768,0.42320958,113030.0,113020.0,0.18492667]
[1758538921714,0.17694417,113030.0,113020.0,0.18492667]
[1758538921951,0.42320958,113030.0,113020.0,0.18492667]
[1758538922895,0.42320958,113030.0,113020.0,0.13022477]
[1758538923095,0.95263499,113030.0,113020.0,0.00104001]
[1758538923295,0.97174243,113030.0,113020.0,0.00104001]
[1758538923498,0.99835237,113030.0,113020.0,0.00104001]
[1758538924307,0.75208696,113030.0,113020.0,0.00104001]
[1758538924739,0.99835237,113030.0,113020.0,0.00104001]
[1758538925297,0.75208696,113030.0,113020.0,0.00104001]
[1758538927413,1.09208696,113030.0,113020.0,0.00104001]
[1758538927562,0.80892696,113030.0,113020.0,0.00104001]
[1758538927773,1.18768696,113030.0,113020.0,0.00104001]
[1758538930801,0.80892696,113030.0,113020.0,0.00104001]
[1758538931284,1.09196696,113030.0,113020.0,0.00104001]
[1758538931494,0.94138155,113030.0,113020.0,0.00104001]
[1758538931699,1.18764696,113030.0,113020.0,0.00104001]
[1758538931904,0.80892696,113030.0,113020.0,0.00104001]
[1758538932110,1.18764696,113030.0,113020.0,0.00104001]
[1758538932494,0.80892696,113030.0,113020.0,0.00104001]
[1758538932941,1.18764696,113030.0,113020.0,0.00104001]
[1758538933144,0.94138155,113030.0,113020.0,0.00104001]
[1758538933328,1.18764696,113030.0,113020.0,0.00104001]
[1758538934050,0.94138155,113030.0,113020.0,0.00104001]
[1758538934262,1.18764696,113030.0,113020.0,0.00104001]
[1758538935173,0.94138155,113030.0,113020.0,0.00104001]
[1758538935502,1.18764696,113030.0,113020.0,0.00104001]
[1758538936770,1.09192696,113030.0,113020.0,0.00104001]
[1758538936953,1.18760696,113030.0,113020.0,0.00603001]
[1758538937192,0.94134155,113030.0,113020.0,0.03095001]
[1758538937390,1.18760696,113030.0,113020.0,0.05867555]
[1758538940755,1.26914778,113030.0,113020.0,0.03095001]
[1758538942400,0.56207223,113030.0,113020.0,0.03095001]
[1758538942640,0.94071223,113030.0,113020.0,0.03095001]
[1758538942856,0.94071223,113030.0,113020.0,0.00303001]
[1758538942857,1.26910778,113030.0,113020.0,0.00303001]
[1758538943099,1.26910778,113030.0,113020.0,0.00104001]
[1758538946302,0.94071223,113030.0,113020.0,0.00104001]
[1758538946504,1.26910778,113030.0,113020.0,0.00104001]
[1758538946922,0.94071223,113030.0,113020.0,0.00104001]
[1758538947119,1.26910778,113030.0,113020.0,0.00618001]
[1758538947514,1.26910778,113030.0,113020.0,0.00303001]
[1758538948368,1.26910778,113030.0,113020.0,0.00104001]
[1758538948773,0.94071223,113030.0,113020.0,0.00104001]
[1758538948949,1.26910552,113030.0,113020.0,0.00104001]
[1758538949305,0.94070997,113030.0,113020.0,0.00104001]
[1758538949505,1.26910552,113030.0,113020.0,0.00104001]
[1758538950241,0.56206997,113030.0,113020.0,0.00104001]
[1758538950444,1.26894552,113030.0,113020.0,0.00104001]
[1758538952682,0.94054997,113030.0,113020.0,0.00104001]
[1758538952860,1.26894552,113030.0,113020.0,0.00104001]
[1758538956376,1.26894552,113030.0,113020.0,0.00104001]
[1758538958598,0.89046552,113030.0,113020.0,0.00104001]
[1758538958795,1.26882552,113030.0,113020.0,0.00104001]
[1758538959006,0.89046552,113030.0,113020.0,0.00104001]
[1758538959205,1.26882552,113030.0,113020.0,0.00104001]
[1758538961272,1.2671757,113030.0,113020.0,0.00104001]
[1758538962816,1.1714557,113030.0,113020.0,0.00302001]
[1758538962957,1.2671357,113030.0,113020.0,0.02885001]
[1758538963593,1.2671357,113030.0,113020.0,0.02570001]
[1758538963792,1.2671357,113030.0,113020.0,0.00302001]
[1758538965142,1.2671357,113030.0,113020.0,0.00104001]
[1758538967331,0.93874015,113030.0,113020.0,0.00104001]
[1758538967530,1.2671357,113030.0,113020.0,0.00104001]
[1758538969122,0.8888157,113030.0,113020.0,0.00302001]
[1758538969277,1.2670557,113030.0,113020.0,0.02885001]
[1758538970398,0.5488157,113030.0,113020.0,0.02885001]
[1758538970586,0.9270157,113030.0,113020.0,0.04943652]
[1758538970780,0.22042015,113030.0,113020.0,0.04943652]
[1758538970985,0.59862015,113030.0,113020.0,0.04943652]
[1758538971798,0.22042015,113030.0,113020.0,0.04943652]
[1758538971999,0.45722503,113030.0,113020.0,0.04943652]
[1758538972217,0.17470503,113030.0,113020.0,0.04943652]
[1758538972423,0.45722503,113030.0,113020.0,0.04943652]
[1758538973168,0.17470503,113030.0,113020.0,0.04943652]
[1758538973315,0.2917137,113040.0,113020.0,0.67021347]
[1758538973523,0.17694417,113030.0,113020.0,0.64438347]
[1758538973718,0.28248,113030.0,113020.0,0.64438347]
[1758538974045,0.28248,113030.0,113020.0,0.66921347]
[1758538974369,0.27460852,113040.0,113030.0,0.17694417]
[1758538974584,0.55908852,113040.0,113030.0,0.23070038]
[1758538974787,0.46140852,113040.0,113030.0,0.25653038]
[1758538975223,0.45940852,113040.0,113030.0,0.25653038]
[1758538975427,0.17692852,113040.0,113030.0,0.25653038]
[1758538975631,0.46140852,113040.0,113030.0,0.07958621]
[1758538976268,0.46340852,113040.0,113030.0,0.07958621]
[1758538980912,0.46340852,113040.0,113030.0,0.25653038]
[1758538982320,0.18092852,113040.0,113030.0,0.25653038]
[1758538982502,0.46328852,113040.0,113030.0,0.25653038]
[1758538983707,0.46328852,113040.0,113030.0,0.07958621]
[1758538984091,0.46328852,113040.0,113030.0,0.25653038]
[1758538984292,0.46324852,113040.0,113030.0,0.25653038]
[1758538986046,0.18092852,113040.0,113030.0,0.25653038]
[1758538986375,0.46320852,113040.0,113030.0,0.25653038]
[1758538987509,0.46320852,113040.0,113030.0,0.23385038]
[1758538987892,0.46320852,113040.0,113030.0,0.25658038]
[1758538989724,0.46320852,113040.0,113030.0,0.07963621]
[1758538990122,0.46320852,113040.0,113030.0,0.25658038]
[1758538992601,0.46320852,113040.0,113030.0,0.07963621]
[1758538993201,0.46320852,113040.0,113030.0,0.05375621]
[1758538993511,0.79160407,113040.0,113030.0,0.05177621]
[1758538993717,0.17694417,113030.0,113020.0,0.11866158]
[1758538993930,0.17694417,113030.0,113020.0,0.14182158]
[1758538994126,0.17694417,113030.0,113020.0,0.14389158]
[1758538995308,0.17694417,113030.0,113020.0,0.14489158]
[1758538999758,0.50533972,113030.0,113020.0,0.08630968]
[1758538999984,0.50533972,113030.0,113020.0,0.00104001]
[1758539000646,0.53194808,113030.0,113020.0,0.00104001]
[1758539002205,0.81398808,113030.0,113020.0,0.00104001]
[1758539002423,0.50469946,113030.0,113020.0,0.00104001]
[1758539002633,0.73187408,113030.0,113020.0,0.00104001]
[1758539002849,0.75098101,113030.0,113020.0,0.00104001]
[1758539003171,0.48559253,113030.0,113020.0,0.25247156]
[1758539003397,0.45898417,113030.0,113020.0,0.32506058]
[1758539004148,0.17694417,113030.0,113020.0,0.6566118]
[1758539004353,0.45894417,113030.0,113020.0,0.41033025]
[1758539004584,0.45894417,113030.0,113020.0,0.58729008]
[1758539006526,0.17694417,113030.0,113020.0,0.61744198]
[1758539006719,0.45890417,113030.0,113020.0,0.61744198]
[1758539007912,0.45888852,113040.0,113020.0,0.86372353]
[1758539008121,0.45888852,113040.0,113030.0,0.46855013]
[1758539008308,0.45888852,113040.0,113030.0,0.56641007]
[1758539008968,0.28196,113040.0,113030.0,0.56641007]
[1758539009171,0.23148304,113050.0,113040.0,0.17692852]
[1758539009172,0.21237751,113050.0,113040.0,0.17692852]
[1758539009379,0.4676927,113050.0,113040.0,0.20255852]
[1758539009718,0.4676927,113050.0,113040.0,0.02972]
[1758539009930,0.4676927,113050.0,113040.0,0.06173285]
[1758539010151,0.4676927,113050.0,113040.0,0.05973285]
[1758539010725,0.4696927,113050.0,113040.0,0.05973285]
[1758539011326,0.4696927,113050.0,113040.0,0.03704285]
[1758539011845,0.4706927,113050.0,113040.0,0.03704285]
[1758539012048,0.4706927,113050.0,113040.0,0.48494292]
[1758539012606,0.4706927,113050.0,113040.0,0.23866137]
[1758539012884,0.4706927,113050.0,113040.0,0.48494292]
[1758539013843,0.4706527,113050.0,113040.0,0.3914548]
[1758539014044,0.4706527,113050.0,113040.0,0.63773635]
[1758539015609,0.47063851,113050.0,113040.0,0.63773635]
[1758539015960,0.47063851,113050.0,113040.0,0.3914548]
[1758539016164,0.47063851,113050.0,113040.0,0.63773635]
[1758539022512,0.47063851,113050.0,113040.0,0.3914548]
[1758539022710,0.47063851,113050.0,113040.0,0.63773635]
[1758539023461,0.18875851,113050.0,113040.0,0.63773635]
[1758539023610,0.47047851,113050.0,113040.0,0.63773635]
[1758539024304,0.47047851,113050.0,113040.0,0.46080783]
[1758539026136,0.47047851,113050.0,113040.0,0.21452628]
[1758539026347,0.47047851,113050.0,113040.0,0.46080783]
[1758539026644,0.71676006,113050.0,113040.0,0.21452628]
[1758539026856,0.71676006,113050.0,113040.0,0.18251343]
[1758539027616,0.47047851,113050.0,113040.0,0.18251343]
[1758539027898,0.47043851,113050.0,113040.0,0.18251343]
[1758539028346,0.47043851,113050.0,113040.0,0.42879498]
[1758539029142,0.18875851,113050.0,113040.0,0.18251343]
[1758539029353,0.47043851,113050.0,113040.0,0.46756011]
[1758539029717,0.47043851,113050.0,113040.0,0.22127856]
[1758539030140,0.47043851,113050.0,113040.0,0.46756011]
[1758539030548,0.47043851,113050.0,113040.0,0.22127856]
[1758539030749,0.47043851,113050.0,113040.0,0.18251343]
[1758539030956,0.47043851,113050.0,113040.0,0.17957343]
[1758539031153,0.47039851,113050.0,113040.0,0.42879498]
[1758539031367,0.47039851,113050.0,113040.0,0.6057235]
[1758539031772,0.47039851,113050.0,113040.0,0.18251343]
[1758539031994,0.47039851,113050.0,113040.0,0.42879498]
[1758539032235,0.18875851,113050.0,113040.0,0.64448863]
[1758539032371,0.18875851,113050.0,113040.0,0.92092208]
[1758539032572,0.47039851,113050.0,113040.0,0.92092208]
[1758539034286,0.003,113050.0,113040.0,1.20252208]
[1758539035654,0.003,113050.0,113040.0,1.54252208]
[1758539036467,0.001,113050.0,113040.0,1.54252208]
[1758539036789,0.001,113050.0,113040.0,1.78880363]
[1758539037134,0.7,113060.0,113050.0,0.17691287]
[1758539037336,0.7,113060.0,113050.0,0.54903798]
[1758539037456,0.7,113060.0,113050.0,0.83059798]
[1758539038321,0.7,113060.0,113050.0,0.54903798]
[1758539038498,0.7,113060.0,113050.0,0.83059798]
[1758539039053,0.7,113060.0,113050.0,0.52419798]
[1758539039258,0.7,113060.0,113050.0,0.52113798]
[1758539039388,0.7,113060.0,113050.0,0.83059798]
[1758539039596,0.7,113060.0,113050.0,0.83159798]
[1758539039797,0.7,113060.0,113050.0,0.55503798]
[1758539040007,0.7,113060.0,113050.0,0.83655798]
[1758539040572,0.7,113060.0,113050.0,0.55503798]
[1758539040835,0.7,113060.0,113050.0,0.83655798]
[1758539041239,0.87689722,113060.0,113050.0,0.55503798]
[1758539041375,0.87689722,113060.0,113050.0,0.30875643]
[1758539041714,0.87689722,113060.0,113050.0,0.54461599]
[1758539042062,0.87689722,113060.0,113050.0,0.36770312]
[1758539042256,0.87689722,113060.0,113050.0,0.54461599]
[1758539042460,0.87689722,113060.0,113050.0,0.12142157]
[1758539042660,1.12517877,113060.0,113050.0,0.12142157]
[1758539042899,0.87689722,113060.0,113050.0,0.16028014]
[1758539043117,0.87689722,113060.0,113050.0,0.40656169]
[1758539043343,0.87689722,113060.0,113050.0,0.16028014]
[1758539043511,0.87689722,113060.0,113050.0,0.12142157]
[1758539043873,0.87889722,113060.0,113050.0,0.12142157]
[1758539044085,1.12517877,113060.0,113050.0,0.12142157]
[1758539044204,0.87889722,113060.0,113050.0,0.12142157]
[1758539047053,1.12517877,113060.0,113050.0,0.09126967]
[1758539047255,1.12517877,113060.0,113050.0,0.006]
[1758539048253,1.12517877,113060.0,113050.0,0.001]
[1758539048458,0.17691287,113050.0,113040.0,0.34395721]
[1758539048676,0.45835287,113050.0,113040.0,0.43123688]
[1758539048880,0.45835287,113050.0,113040.0,0.43429688]
[1758539049098,0.45835287,113050.0,113040.0,0.6112254]
[1758539049303,0.45835287,113050.0,113040.0,0.6360654]
[1758539049533,0.17691287,113050.0,113040.0,0.6360654]
[1758539049662,0.45835287,113050.0,113040.0,0.6360654]
[1758539050268,0.45835287,113050.0,113040.0,0.6420654]
[1758539050661,0.17691287,113050.0,113040.0,0.6420654]
[1758539050882,0.45835287,113050.0,113040.0,0.6420654]
[1758539051077,0.45835287,113050.0,113040.0,0.39578385]
[1758539051283,0.45835287,113050.0,113040.0,0.6420654]
[1758539051487,0.45835287,113050.0,113040.0,0.21885533]
[1758539051685,0.70463442,113050.0,113040.0,0.15879343]
[1758539051890,0.70663442,113050.0,113040.0,0.15879343]
[1758539052698,0.70663442,113050.0,113040.0,0.15779343]
[1758539053210,0.42319442,113050.0,113040.0,0.15779343]
[1758539053366,0.45831287,113050.0,113040.0,0.15810343]
[1758539053516,0.70459442,113050.0,113040.0,0.15488343]
[1758539053719,0.70459442,113050.0,113040.0,0.15479343]
[1758539054129,0.42319442,113050.0,113040.0,0.21535923]
[1758539054334,0.17691287,113050.0,113040.0,0.21535923]
[1758539054531,0.45831287,113050.0,113040.0,0.42201775]
[1758539054746,0.17691287,113050.0,113040.0,0.6682993]
[1758539054946,0.45831287,113050.0,113040.0,0.6682993]
[1758539055188,0.45831287,113050.0,113040.0,0.94473275]
[1758539055460,1.15829722,113060.0,113040.0,0.94473275]
[1758539055628,1.15829722,113060.0,113050.0,0.27392155]
[1758539055788,1.15829722,113060.0,113050.0,0.29306945]
[1758539055988,0.87689722,113060.0,113050.0,0.29306945]
[1758539056184,0.7,113060.0,113050.0,0.37833912]
[1758539056395,0.98136,113060.0,113050.0,0.58540389]
[1758539056835,1.15925722,113060.0,113050.0,0.58540389]
[1758539057051,0.98236,113060.0,113050.0,0.33912234]
[1758539057380,1.15925722,113060.0,113050.0,0.58540389]
[1758539057967,1.16025722,113060.0,113050.0,0.58540389]
[1758539059701,1.16025722,113060.0,113050.0,0.16220947]
[1758539059906,1.16025722,113060.0,113050.0,0.40849102]
[1758539060906,1.16025722,113060.0,113050.0,0.16220947]
[1758539061549,0.87889722,113060.0,113050.0,0.56098389]
[1758539061700,1.16021722,113060.0,113050.0,0.58540389]
[1758539061900,0.702,113060.0,113050.0,0.58540389]
[1758539062104,0.87889722,113060.0,113050.0,0.58540389]
[1758539062302,0.87889722,113060.0,113050.0,0.33912234]
[1758539062505,0.87889722,113060.0,113050.0,0.58540389]
[1758539062738,0.702,113060.0,113050.0,0.66722341]
[1758539064843,0.87889722,113060.0,113050.0,0.94854341]
[1758539066402,0.87889722,113060.0,113050.0,0.66722341]
[1758539066626,0.87889722,113060.0,113050.0,0.94850341]
[1758539067319,0.87889722,113060.0,113050.0,0.49031054]
[1758539067520,0.87889722,113060.0,113050.0,0.94850341]
[1758539068021,0.87889722,113060.0,113050.0,0.33912234]
[1758539068504,0.87889722,113060.0,113050.0,0.29233444]
[1758539069268,0.87889722,113060.0,113050.0,0.11542157]
[1758539069638,0.87889722,113060.0,113050.0,0.29233444]
[1758539069840,0.87889722,113060.0,113050.0,0.29434444]
[1758539070079,0.87889722,113060.0,113050.0,0.31735444]
[1758539070302,0.87889722,113060.0,113050.0,0.32042444]
[1758539071147,0.87889722,113060.0,113050.0,0.11743157]
[1758539073996,0.87889722,113060.0,113050.0,0.11542157]
[1758539074195,0.88089722,113060.0,113050.0,0.11542157]
[1758539074814,0.87889722,113060.0,113050.0,0.11542157]
[1758539078492,0.87889722,113060.0,113040.0,0.09767566]
[1758539078493,0.17691287,113050.0,113040.0,0.09767566]
[1758539078703,0.17691287,113050.0,113040.0,0.14351157]
[1758539079068,0.45811287,113050.0,113040.0,0.14351157]
[1758539079791,0.45811287,113050.0,113040.0,0.21017849]
[1758539080443,0.45811287,113050.0,113040.0,0.21217849]
[1758539080926,0.78621394,113050.0,113040.0,0.18408849]
[1758539081155,0.78821394,113050.0,113040.0,0.18408849]
[1758539081410,0.46011287,113050.0,113040.0,0.18408849]
[1758539081889,0.46007287,113050.0,113040.0,0.18408849]
[1758539082762,0.17691287,113050.0,113040.0,0.18408849]
[1758539082986,0.45807287,113050.0,113040.0,0.18408849]
[1758539084137,0.17691287,113050.0,113040.0,0.18916849]
[1758539084395,0.45807287,113050.0,113040.0,0.18916849]
[1758539085251,0.45807287,113050.0,113040.0,0.18609849]
[1758539085455,0.17691287,113050.0,113040.0,0.18916849]
[1758539085696,0.17691287,113050.0,113040.0,0.54027956]
[1758539085913,0.45807287,113050.0,113040.0,0.54027956]
[1758539086129,0.45807287,113050.0,113040.0,0.21217849]
[1758539086544,0.45807287,113050.0,113040.0,0.27920665]
[1758539086747,0.45807287,113050.0,113040.0,0.78423624]
[1758539086944,0.28116,113050.0,113040.0,0.78423624]
[1758539087293,1.15801722,113060.0,113050.0,0.0301519]
[1758539087498,1.15801722,113060.0,113050.0,0.11542157]
[1758539087703,1.15801722,113060.0,113050.0,0.15410711]
[1758539088761,1.15901722,113060.0,113050.0,0.14351157]
[1758539088958,1.16001722,113060.0,113050.0,0.14351157]
[1758539090869,1.16201722,113060.0,113050.0,0.11542157]
[1758539091488,1.16001722,113060.0,113050.0,0.11542157]
[1758539092455,0.17691287,113050.0,113040.0,0.09681882]
[1758539092661,0.17691287,113050.0,113040.0,0.21017849]
[1758539095052,0.17691287,113050.0,113040.0,0.21217849]
[1758539096375,0.45799287,113050.0,113040.0,0.71720808]
[1758539097114,0.28108,113050.0,113040.0,0.71720808]
[1758539097339,0.45799287,113050.0,113040.0,0.71720808]
[1758539098132,0.17691287,113050.0,113040.0,0.71720808]
[1758539098535,0.17691287,113050.0,113040.0,0.38910701]
[1758539098750,0.17691287,113050.0,113040.0,0.71720808]
[1758539102193,0.17691287,113050.0,113040.0,0.38910701]
[1758539102396,0.17691287,113050.0,113040.0,0.54027956]
[1758539102609,0.17691287,113050.0,113040.0,0.82131956]
[1758539102799,0.17691287,113050.0,113040.0,0.99824808]
[1758539103392,0.89600155,113060.0,113040.0,0.99824808]
[1758539103648,1.15793722,113060.0,113040.0,0.97216808]
[1758539103837,1.15793722,113060.0,113050.0,0.02587]
[1758539104203,1.17704985,113060.0,113050.0,0.02587]
[1758539104405,1.17704985,113060.0,113050.0,0.02793]
[1758539104614,0.7,113060.0,113050.0,0.64266854]
[1758539104840,0.7,113060.0,113050.0,0.64779726]
[1758539105437,0.87780722,113060.0,113050.0,0.11542157]
[1758539105639,1.20847829,113060.0,113050.0,0.08526967]
[1758539105864,0.17692852,113040.0,113030.0,0.20354164]
[1758539106079,0.17692852,113040.0,113030.0,0.33358669]
[1758539106285,0.17783852,113040.0,113030.0,0.33358669]
[1758539106905,0.17783852,113040.0,113030.0,0.33564669]
[1758539107119,0.17692852,113040.0,113030.0,0.68961776]
[1758539107317,0.17692852,113040.0,113030.0,0.69461776]
[1758539107521,0.17692852,113040.0,113030.0,0.69561776]
[1758539107747,0.17891287,113050.0,113030.0,0.69561776]
[1758539107960,0.17891287,113050.0,113040.0,0.08526967]
[1758539108185,0.45882287,113050.0,113040.0,0.12167242]
[1758539109645,0.45882287,113050.0,113040.0,0.12367242]
[1758539112807,0.17782287,113050.0,113040.0,0.12367242]
[1758539113034,0.45882287,113050.0,113040.0,0.12367242]
[1758539113165,0.45882287,113050.0,113040.0,0.08726967]
[1758539115599,0.17691287,113050.0,113040.0,0.29259819]
[1758539115810,0.45787287,113050.0,113040.0,0.29259819]
[1758539116254,0.17691287,113050.0,113040.0,0.29259819]
[1758539116461,0.45787287,113050.0,113040.0,0.29259819]
[1758539116866,0.17691287,113050.0,113040.0,0.29259819]
[1758539117080,0.45787287,113050.0,113040.0,0.29259819]
[1758539118415,0.17691287,113050.0,113040.0,0.29259819]
[1758539118665,0.45783287,113050.0,113040.0,0.29259819]
[1758539119300,0.45783287,113050.0,113040.0,0.32275009]
[1758539119512,0.45783287,113050.0,113040.0,0.14582157]
[1758539119740,0.45783287,113050.0,113040.0,0.22964333]
[1758539119948,0.45783287,113050.0,113040.0,0.388879]
[1758539122403,0.45783287,113050.0,113040.0,0.21195048]
[1758539122626,0.45783287,113050.0,113040.0,0.388879]
[1758539122843,0.45783287,113050.0,113040.0,0.45810617]
[1758539123064,0.90485282,113060.0,113040.0,0.63503469]
[1758539123280,1.18577282,113060.0,113050.0,0.44942856]
[1758539123523,1.18577282,113060.0,113050.0,0.45146856]
[1758539124256,1.18677282,113060.0,113050.0,0.45146856]
[1758539124486,1.18677282,113060.0,113050.0,0.27455569]
[1758539124712,0.90485282,113060.0,113050.0,0.53673823]
[1758539124941,0.88574208,113060.0,113050.0,0.56689013]
[1758539125079,1.16766208,113060.0,113050.0,0.56689013]
[1758539125293,0.701,113060.0,113050.0,0.56689013]
[1758539125499,1.15977722,113060.0,113050.0,0.56689013]
[1758539125698,0.98188,113060.0,113050.0,0.56689013]
[1758539125900,1.15977722,113060.0,113050.0,0.56689013]
[1758539126907,1.15977722,113060.0,113050.0,0.32073444]
[1758539127109,1.15977722,113060.0,113050.0,0.56689013]
[1758539128283,1.15977722,113060.0,113050.0,0.32073444]
[1758539128471,1.15977722,113060.0,113050.0,0.56689013]
[1758539130836,0.98284,113060.0,113050.0,0.56689013]
[1758539131034,0.702,113060.0,113050.0,0.56689013]
[1758539131259,0.98284,113060.0,113050.0,0.56689013]
[1758539132236,1.15973722,113060.0,113050.0,0.56689013]
[1758539132448,1.15973722,113060.0,113050.0,0.32073444]
[1758539132660,1.15973722,113060.0,113050.0,0.56689013]
[1758539134889,1.16064722,113060.0,113050.0,0.14062157]
[1758539135156,1.16064722,113060.0,113050.0,0.56369013]
[1758539135368,1.16064722,113060.0,113050.0,0.31753444]
[1758539135580,1.16064722,113060.0,113050.0,0.11542157]
[1758539135764,1.16064722,113060.0,113050.0,0.36157726]
[1758539137057,1.16064722,113060.0,113050.0,0.53849013]
[1758539137269,1.16064722,113060.0,113050.0,0.29233444]
[1758539137430,1.16064722,113060.0,113050.0,0.53849013]
[1758539138264,1.16064722,113060.0,113050.0,0.36157726]
[1758539140200,1.16064722,113060.0,113050.0,0.11542157]
[1758539140409,1.16064722,113060.0,113050.0,0.36157726]
[1758539141022,1.16064722,113060.0,113040.0,0.51505312]
[1758539141023,0.17691287,113050.0,113040.0,0.09628081]
[1758539141261,0.42654856,113050.0,113040.0,0.18155048]
[1758539141559,0.45858287,113050.0,113040.0,0.60463469]
[1758539141743,0.17691287,113050.0,113040.0,0.60987469]
[1758539141902,0.45767287,113050.0,113040.0,0.63257469]
[1758539142103,0.28076,113050.0,113040.0,0.87873038]
[1758539142308,0.28076,113050.0,113040.0,0.63257469]
[1758539142709,0.45767287,113050.0,113040.0,0.63457469]
[1758539142935,0.87689722,113060.0,113050.0,0.0301519]
[1758539143187,0.87689722,113060.0,113050.0,0.58412141]
[1758539143391,0.87689722,113060.0,113050.0,0.56643013]
[1758539143392,1.15765722,113060.0,113050.0,0.56643013]
[1758539144227,1.15865722,113060.0,113050.0,0.56643013]
[1758539144434,1.15965722,113060.0,113050.0,0.56643013]
[1758539145256,1.15965722,113060.0,113050.0,0.32027444]
[1758539145679,1.15965722,113060.0,113050.0,0.14336157]
[1758539145900,1.16056722,113060.0,113050.0,0.36157726]
[1758539146850,1.16056722,113060.0,113050.0,0.36367726]
[1758539147035,1.15961722,113060.0,113050.0,0.56643013]
[1758539149519,1.15961722,113060.0,113050.0,0.38951726]
[1758539150688,1.16052722,113060.0,113050.0,0.38951726]
[1758539151262,1.15961722,113060.0,113050.0,0.35936536]
[1758539151649,1.15961722,113060.0,113050.0,0.53627823]
[1758539152154,1.15961722,113060.0,113050.0,0.35936536]
[1758539152665,1.15961722,113060.0,113050.0,0.53627823]
[1758539153789,0.87889722,113060.0,113050.0,0.53627823]
[1758539153999,0.98272,113060.0,113050.0,0.56643013]
[1758539154245,1.15961722,113060.0,113050.0,0.56643013]
[1758539155360,1.15961722,113060.0,113050.0,0.38951726]
[1758539155550,1.16052722,113060.0,113050.0,0.14022157]
[1758539155792,1.16052722,113060.0,113050.0,0.42693473]
[1758539156025,1.16052722,113060.0,113050.0,0.42483473]
[1758539156447,1.16052722,113060.0,113050.0,0.36157726]
[1758539156665,1.16052722,113060.0,113050.0,0.11542157]
[1758539156883,1.16252722,113060.0,113050.0,0.11542157]
[1758539157072,1.40868291,113060.0,113050.0,0.11542157]
[1758539158211,1.16252722,113060.0,113050.0,0.11542157]
[1758539158686,1.16252722,113060.0,113050.0,0.17846901]
[1758539159781,1.16052722,113060.0,113050.0,0.17846901]
[1758539160395,1.16052722,113060.0,113050.0,0.11542157]
[1758539160617,1.40925291,113060.0,113050.0,0.11542157]
[1758539160831,1.16309722,113060.0,113050.0,0.11542157]
[1758539161005,1.16052722,113060.0,113050.0,0.36157726]
[1758539162038,1.16052722,113060.0,113050.0,0.11542157]
[1758539162407,1.42579888,113060.0,113050.0,0.11542157]
[1758539162620,0.17691287,113050.0,113040.0,0.09628081]
[1758539162852,0.18039287,113050.0,113040.0,0.18155048]
[1758539163272,0.45842287,113050.0,113040.0,0.18155048]
[1758539163809,0.45842287,113050.0,113040.0,0.42770617]
[1758539163988,0.45842287,113050.0,113040.0,0.42970617]
[1758539164225,0.45842287,113050.0,113040.0,0.49384557]
[1758539164596,0.17782287,113050.0,113040.0,0.49384557]
[1758539165003,0.45842287,113050.0,113040.0,0.49384557]
[1758539165223,0.17782287,113050.0,113040.0,0.49384557]
[1758539165607,0.45842287,113050.0,113040.0,0.49384557]
[1758539165825,0.45842287,113050.0,113040.0,0.49594557]
[1758539166879,0.45842287,113050.0,113040.0,0.24768988]
[1758539167083,0.45842287,113050.0,113040.0,0.49384557]
[1758539167679,0.45842287,113050.0,113040.0,0.49594557]
[1758539167893,0.45842287,113050.0,113040.0,0.52185557]
[1758539168304,0.17782287,113050.0,113040.0,0.69878409]
[1758539168506,0.45751287,113050.0,113040.0,0.69878409]
[1758539168917,0.45751287,113050.0,113040.0,0.27569988]
[1758539169169,0.45751287,113050.0,113040.0,0.45771617]
[1758539170585,0.17691287,113050.0,113040.0,0.63464469]
[1758539171004,0.45747287,113050.0,113040.0,0.63464469]
[1758539171449,0.17691287,113050.0,113040.0,0.63464469]
[1758539171664,0.45747287,113050.0,113040.0,0.63464469]
[1758539171859,0.17691287,113050.0,113040.0,0.63464469]
[1758539172060,0.45747287,113050.0,113040.0,0.63464469]
[1758539172687,0.45747287,113050.0,113040.0,0.60449279]
[1758539174120,0.17691287,113050.0,113040.0,0.63464469]
[1758539174316,0.45747287,113050.0,113040.0,0.63464469]
[1758539175519,0.17691287,113050.0,113040.0,0.63464469]
[1758539175732,0.45747287,113050.0,113040.0,0.63464469]
[1758539180022,0.45747287,113050.0,113040.0,0.60449279]
[1758539180889,0.17691287,113050.0,113040.0,0.63464469]
[1758539181082,0.17691287,113050.0,113040.0,0.63459469]
[1758539181301,0.28052,113050.0,113040.0,0.88075038]
[1758539181756,0.28052,113050.0,113040.0,1.16127038]
[1758539182118,0.45743287,113050.0,113040.0,0.388439]